[Event "*** SCC Grand Prix: Titled Tuesday Blitz"]
[Site "Chess.com"]
[Date "2020.08.04"]
[Round "1"]
[White "afgano29"]
[Black "j_coca"]
[Result "1-0"]
[WhiteElo "2656"]
[BlackElo "2300"]
[TimeControl "180+1"]
[EndTime "13:50:48 PDT"]
[Termination "afgano29 won by resignation"]

1. d4 {[%clk 0:02:59.8]} 1... f5 {[%clk 0:02:56.9]} 2. Nf3 {[%clk 0:02:59.3]}
2... Nf6 {[%clk 0:02:56.8]} 3. g3 {[%clk 0:02:58.9]} 3... g6 {[%clk 0:02:56.9]}
4. Bg2 {[%clk 0:02:59.3]} 4... Bg7 {[%clk 0:02:57.3]} 5. O-O {[%clk 0:02:59.8]}
5... O-O {[%clk 0:02:57.6]} 6. b3 {[%clk 0:03:00.1]} 6... d6 {[%clk 0:02:58]} 7.
Bb2 {[%clk 0:03:00.7]} 7... Kh8 {[%clk 0:02:54.8]} 8. Na3 {[%clk 0:03:00.9]}
8... a6 {[%clk 0:02:54]} 9. Nc4 {[%clk 0:02:58.5]} 9... Nc6 {[%clk 0:02:53.2]}
10. a4 {[%clk 0:02:56.4]} 10... Qe8 {[%clk 0:02:52.8]} 11. d5 {[%clk 0:02:52.6]}
11... Nd8 {[%clk 0:02:52.1]} 12. a5 {[%clk 0:02:47.4]} 12... e5 {[%clk
0:02:50.9]} 13. dxe6 {[%clk 0:02:46.9]} 13... Bxe6 {[%clk 0:02:50.6]} 14. Nfd2
{[%clk 0:02:41.2]} 14... d5 {[%clk 0:02:42.5]} 15. Ne5 {[%clk 0:02:39.1]} 15...
c6 {[%clk 0:02:41.7]} 16. Nd3 {[%clk 0:02:33.5]} 16... Nf7 {[%clk 0:02:41.2]}
17. Nc5 {[%clk 0:02:30.1]} 17... Nd6 {[%clk 0:02:27.3]} 18. Nf3 {[%clk
0:02:26.1]} 18... Nfe4 {[%clk 0:02:21.1]} 19. Bxg7+ {[%clk 0:02:24.9]} 19...
Kxg7 {[%clk 0:02:19.7]} 20. Nd3 {[%clk 0:02:11.4]} 20... h6 {[%clk 0:02:18]} 21.
Nd4 {[%clk 0:02:08]} 21... Bd7 {[%clk 0:02:16.8]} 22. f3 {[%clk 0:02:02.7]}
22... Nf6 {[%clk 0:02:16.4]} 23. Qd2 {[%clk 0:01:59.6]} 23... Rc8 {[%clk
0:02:10.1]} 24. Nc5 {[%clk 0:01:57.6]} 24... Rc7 {[%clk 0:02:08.2]} 25. Rae1
{[%clk 0:01:56.3]} 25... Bc8 {[%clk 0:02:07.4]} 26. Qc3 {[%clk 0:01:55.3]} 26...
Re7 {[%clk 0:02:05.1]} 27. e3 {[%clk 0:01:52.4]} 27... Kh7 {[%clk 0:02:05.2]}
28. Re2 {[%clk 0:01:52]} 28... Qf7 {[%clk 0:02:05.3]} 29. Rfe1 {[%clk
0:01:51.9]} 29... Rfe8 {[%clk 0:02:05.7]} 30. Qb4 {[%clk 0:01:49.6]} 30... Rd8
{[%clk 0:01:49.5]} 31. Rd1 {[%clk 0:01:42.2]} 31... Kh8 {[%clk 0:01:43.6]} 32.
Kf2 {[%clk 0:01:40.5]} 32... g5 {[%clk 0:01:43.6]} 33. Red2 {[%clk 0:01:33.2]}
33... g4 {[%clk 0:01:39.3]} 34. f4 {[%clk 0:01:30.1]} 34... Nfe4+ {[%clk
0:01:39]} 35. Bxe4 {[%clk 0:01:27.2]} 35... fxe4 {[%clk 0:01:38.4]} 36. Nxa6
{[%clk 0:01:22.4]} 36... bxa6 {[%clk 0:01:31.2]} 37. Nxc6 {[%clk 0:01:22.3]}
37... Rdd7 {[%clk 0:01:25.6]} 38. Nxe7 {[%clk 0:01:22.1]} 38... Qh5 {[%clk
0:01:15.1]} 39. Kg1 {[%clk 0:01:15.9]} 39... Bb7 {[%clk 0:01:08.6]} 40. Nxd5
{[%clk 0:01:11.3]} 40... Nb5 {[%clk 0:01:07.4]} 41. Qf8+ {[%clk 0:01:09.4]} 1-0

[Event "*** SCC Grand Prix: Titled Tuesday Blitz"]
[Site "Chess.com"]
[Date "2020.08.04"]
[Round "1"]
[White "spacegirl987"]
[Black "FMJoseHerrera"]
[Result "0-1"]
[WhiteElo "1948"]
[BlackElo "2495"]
[TimeControl "180+1"]
[EndTime "13:50:54 PDT"]
[Termination "FMJoseHerrera won on time"]

1. e4 {[%clk 0:03:00.9]} 1... f6 {[%clk 0:03:00.9]} 2. d4 {[%clk 0:02:58.6]}
2... g6 {[%clk 0:03:01.3]} 3. Bd3 {[%clk 0:02:57.4]} 3... Kf7 {[%clk 0:03:01.6]}
4. Nc3 {[%clk 0:02:56]} 4... Kg7 {[%clk 0:03:02.1]} 5. Be3 {[%clk 0:02:54.5]}
5... d6 {[%clk 0:03:00.6]} 6. Qd2 {[%clk 0:02:54.4]} 6... e5 {[%clk 0:02:59.8]}
7. dxe5 {[%clk 0:02:49.4]} 7... dxe5 {[%clk 0:02:59.4]} 8. Nf3 {[%clk
0:02:49.6]} 8... Bg4 {[%clk 0:02:58.3]} 9. O-O-O {[%clk 0:02:45.1]} 9... Nc6
{[%clk 0:02:51.7]} 10. h3 {[%clk 0:02:41]} 10... Bxf3 {[%clk 0:02:51.6]} 11.
gxf3 {[%clk 0:02:40.6]} 11... Bb4 {[%clk 0:02:51.6]} 12. f4 {[%clk 0:02:31.4]}
12... Nge7 {[%clk 0:02:47.3]} 13. fxe5 {[%clk 0:02:24]} 13... Nxe5 {[%clk
0:02:42.7]} 14. f4 {[%clk 0:01:58.8]} 14... Nxd3+ {[%clk 0:02:42.4]} 15. Qxd3
{[%clk 0:01:58.2]} 15... Qe8 {[%clk 0:02:18.2]} 16. Qc4 {[%clk 0:01:36.5]} 16...
Bxc3 {[%clk 0:02:16.3]} 17. Qxc3 {[%clk 0:01:35.5]} 17... Nc6 {[%clk 0:02:10.9]}
18. f5 {[%clk 0:01:13.2]} 18... Rd8 {[%clk 0:01:45.6]} 19. Rxd8 {[%clk
0:01:00.6]} 19... Qxd8 {[%clk 0:01:46.5]} 20. Rd1 {[%clk 0:01:00.2]} 20... Qe7
{[%clk 0:01:46.6]} 21. Bc5 {[%clk 0:00:43.3]} 21... Qf7 {[%clk 0:01:29.8]} 22.
Rg1 {[%clk 0:00:22.7]} 22... Re8 {[%clk 0:01:22.5]} 23. fxg6 {[%clk 0:00:20.6]}
23... hxg6 {[%clk 0:01:23.4]} 24. Qe3 {[%clk 0:00:17]} 24... Qxa2 {[%clk
0:01:20.5]} 25. Qg3 {[%clk 0:00:07.9]} 25... Ne5 {[%clk 0:01:17.6]} 26. Bd4
{[%clk 0:00:05.8]} 26... Rd8 {[%clk 0:01:11.9]} 0-1

[Event "*** SCC Grand Prix: Titled Tuesday Blitz"]
[Site "Chess.com"]
[Date "2020.08.04"]
[Round "1"]
[White "ZEN-22"]
[Black "LimaRR"]
[Result "1-0"]
[WhiteElo "2511"]
[BlackElo "2073"]
[TimeControl "180+1"]
[EndTime "13:50:55 PDT"]
[Termination "ZEN-22 won on time"]

1. e3 {[%clk 0:02:59.3]} 1... Nf6 {[%clk 0:02:58.7]} 2. Ne2 {[%clk 0:02:59.1]}
2... d5 {[%clk 0:02:57.4]} 3. d4 {[%clk 0:03:00]} 3... c5 {[%clk 0:02:55.9]} 4.
c4 {[%clk 0:02:59]} 4... e6 {[%clk 0:02:51.1]} 5. cxd5 {[%clk 0:02:58]} 5...
Nxd5 {[%clk 0:02:46.5]} 6. a3 {[%clk 0:02:56.2]} 6... Nc6 {[%clk 0:02:44.1]} 7.
dxc5 {[%clk 0:02:53.4]} 7... Bxc5 {[%clk 0:02:43.3]} 8. b4 {[%clk 0:02:53.8]}
8... Be7 {[%clk 0:02:42.3]} 9. Bb2 {[%clk 0:02:53.9]} 9... O-O {[%clk
0:02:41.3]} 10. e4 {[%clk 0:02:48]} 10... Nb6 {[%clk 0:02:39.9]} 11. Qxd8 {[%clk
0:02:47.4]} 11... Rxd8 {[%clk 0:02:40.8]} 12. Nbc3 {[%clk 0:02:33.2]} 12... Nc4
{[%clk 0:02:36.2]} 13. Bc1 {[%clk 0:02:32.9]} 13... Bf6 {[%clk 0:02:33.1]} 14.
Ra2 {[%clk 0:02:30.2]} 14... N6e5 {[%clk 0:02:16.7]} 15. Ng3 {[%clk 0:02:23.9]}
15... Nd3+ {[%clk 0:01:36.7]} 16. Bxd3 {[%clk 0:02:19.2]} 16... Rxd3 {[%clk
0:01:03.5]} 17. Nce2 {[%clk 0:02:16.3]} 17... e5 {[%clk 0:00:52.4]} 18. Rc2
{[%clk 0:01:55.6]} 18... Be6 {[%clk 0:00:51.1]} 19. Nc3 {[%clk 0:01:55.3]} 19...
Rc8 {[%clk 0:00:42.4]} 20. Nd5 {[%clk 0:01:50.9]} 20... Bxd5 {[%clk 0:00:38.8]}
21. exd5 {[%clk 0:01:50.8]} 21... Rxd5 {[%clk 0:00:25.6]} 22. Ne4 {[%clk
0:01:50.4]} 22... b5 {[%clk 0:00:23.1]} 23. Nxf6+ {[%clk 0:01:46.2]} 23... gxf6
{[%clk 0:00:24]} 24. Ke2 {[%clk 0:01:46.7]} 24... Nd6 {[%clk 0:00:20.6]} 25.
Rxc8+ {[%clk 0:01:45.2]} 25... Nxc8 {[%clk 0:00:21.5]} 26. Bh6 {[%clk
0:01:44.7]} 26... Nb6 {[%clk 0:00:19.9]} 27. Rc1 {[%clk 0:01:44.9]} 27... Nc4
{[%clk 0:00:18.9]} 28. a4 {[%clk 0:01:45.4]} 28... a6 {[%clk 0:00:17.8]} 29.
axb5 {[%clk 0:01:45.5]} 29... axb5 {[%clk 0:00:18.7]} 30. Ra1 {[%clk 0:01:45.4]}
30... Rd8 {[%clk 0:00:18.1]} 31. Ra6 {[%clk 0:01:45]} 31... Rb8 {[%clk
0:00:17.8]} 32. Rxf6 {[%clk 0:01:43.7]} 32... Re8 {[%clk 0:00:14.5]} 33. Rc6
{[%clk 0:01:42.7]} 33... f5 {[%clk 0:00:12.2]} 34. Rc7 {[%clk 0:01:42.4]} 34...
Rd8 {[%clk 0:00:02.6]} 35. Rg7+ {[%clk 0:01:40.3]} 35... Kh8 {[%clk 0:00:01.9]}
36. Rf7 {[%clk 0:01:40.6]} 36... Kg8 {[%clk 0:00:01.6]} 37. Rxf5 {[%clk
0:01:40.3]} 1-0

[Event "*** SCC Grand Prix: Titled Tuesday Blitz"]
[Site "Chess.com"]
[Date "2020.08.04"]
[Round "1"]
[White "Jenia84"]
[Black "Pultis"]
[Result "0-1"]
[WhiteElo "2359"]
[BlackElo "2722"]
[TimeControl "180+1"]
[EndTime "13:50:56 PDT"]
[Termination "Pultis won by resignation"]

1. Nf3 {[%clk 0:03:00.9]} 1... Nf6 {[%clk 0:02:58.1]} 2. d4 {[%clk 0:03:00.5]}
2... g6 {[%clk 0:02:57.7]} 3. c4 {[%clk 0:03:00.8]} 3... Bg7 {[%clk 0:02:57.8]}
4. Nc3 {[%clk 0:03:01.2]} 4... d5 {[%clk 0:02:57.6]} 5. cxd5 {[%clk 0:03:00.6]}
5... Nxd5 {[%clk 0:02:57.9]} 6. e4 {[%clk 0:03:01.1]} 6... Nxc3 {[%clk
0:02:57.5]} 7. bxc3 {[%clk 0:03:01.5]} 7... c5 {[%clk 0:02:57.2]} 8. Be3 {[%clk
0:03:00.4]} 8... O-O {[%clk 0:02:54.4]} 9. Be2 {[%clk 0:02:58.9]} 9... Qa5
{[%clk 0:02:54.3]} 10. Qd2 {[%clk 0:02:56.8]} 10... Bg4 {[%clk 0:02:54.3]} 11.
Rd1 {[%clk 0:02:42.9]} 11... Nc6 {[%clk 0:02:39.2]} 12. O-O {[%clk 0:02:41.9]}
12... Rfd8 {[%clk 0:02:35.6]} 13. d5 {[%clk 0:02:14.2]} 13... Bxc3 {[%clk
0:02:31.3]} 14. Qc2 {[%clk 0:02:02.6]} 14... Bxf3 {[%clk 0:02:31.2]} 15. Bxf3
{[%clk 0:02:02.3]} 15... Nd4 {[%clk 0:02:31.4]} 16. Qc1 {[%clk 0:01:29.9]} 16...
Nxf3+ {[%clk 0:02:26.7]} 17. gxf3 {[%clk 0:01:30.8]} 17... Rac8 {[%clk
0:02:20.3]} 18. f4 {[%clk 0:01:18.7]} 18... b5 {[%clk 0:02:20.5]} 19. e5 {[%clk
0:01:16.4]} 19... b4 {[%clk 0:02:14.6]} 20. Qc2 {[%clk 0:01:15.3]} 20... Bd4
{[%clk 0:02:13.1]} 21. Qc4 {[%clk 0:01:01.1]} 21... Qa3 {[%clk 0:01:49.2]} 22.
Rd3 {[%clk 0:00:52.9]} 22... Qb2 {[%clk 0:01:46.6]} 23. Bxd4 {[%clk 0:00:35.9]}
23... cxd4 {[%clk 0:01:47.5]} 24. Qxd4 {[%clk 0:00:36.2]} 24... Qxa2 {[%clk
0:01:46.5]} 25. Ra1 {[%clk 0:00:31.9]} 25... Qe2 {[%clk 0:01:41.4]} 26. Re3
{[%clk 0:00:29.7]} 26... Qg4+ {[%clk 0:01:38.4]} 27. Rg3 {[%clk 0:00:29.3]}
27... Qe2 {[%clk 0:01:38]} 28. Re3 {[%clk 0:00:18.9]} 28... Qb5 {[%clk
0:01:35.7]} 29. Rxa7 {[%clk 0:00:15.5]} 29... Rc1+ {[%clk 0:01:32.8]} 30. Kg2
{[%clk 0:00:14.9]} 30... Rxd5 {[%clk 0:01:33]} 31. Ra8+ {[%clk 0:00:13.1]} 31...
Kg7 {[%clk 0:01:32.2]} 32. Qb2 {[%clk 0:00:13]} 32... Qf1+ {[%clk 0:01:31.8]}
33. Kg3 {[%clk 0:00:12.7]} 33... Qg1+ {[%clk 0:01:31.9]} 34. Kh3 {[%clk
0:00:12.7]} 34... h5 {[%clk 0:01:31.9]} 35. e6+ {[%clk 0:00:12.5]} 35... f6
{[%clk 0:01:32.4]} 36. Rg3 {[%clk 0:00:10.7]} 36... Qf1+ {[%clk 0:01:31]} 37.
Rg2 {[%clk 0:00:10.9]} 37... Rd3+ {[%clk 0:01:31.5]} 0-1

[Event "*** SCC Grand Prix: Titled Tuesday Blitz"]
[Site "Chess.com"]
[Date "2020.08.04"]
[Round "1"]
[White "Gareth-Bale11"]
[Black "ChronicUnhappiness"]
[Result "1-0"]
[WhiteElo "2758"]
[BlackElo "2387"]
[TimeControl "180+1"]
[EndTime "13:50:59 PDT"]
[Termination "Gareth-Bale11 won by resignation"]

1. e4 {[%clk 0:02:55]} 1... d6 {[%clk 0:02:59.1]} 2. Nf3 {[%clk 0:02:52.3]} 2...
Nf6 {[%clk 0:02:57.6]} 3. Nc3 {[%clk 0:02:51.3]} 3... g6 {[%clk 0:02:53.3]} 4.
d4 {[%clk 0:02:46.7]} 4... Bg7 {[%clk 0:02:53.4]} 5. Be2 {[%clk 0:02:47.1]} 5...
O-O {[%clk 0:02:53.4]} 6. O-O {[%clk 0:02:47.1]} 6... a6 {[%clk 0:02:46.1]} 7.
a4 {[%clk 0:02:46.6]} 7... Nc6 {[%clk 0:02:40.2]} 8. d5 {[%clk 0:02:44.4]} 8...
Nb8 {[%clk 0:02:31.3]} 9. Re1 {[%clk 0:02:39.1]} 9... Bg4 {[%clk 0:02:22.5]} 10.
h3 {[%clk 0:02:38.2]} 10... Bxf3 {[%clk 0:02:21.9]} 11. Bxf3 {[%clk 0:02:39.1]}
11... c6 {[%clk 0:02:18.8]} 12. a5 {[%clk 0:02:37.9]} 12... cxd5 {[%clk
0:02:17.4]} 13. exd5 {[%clk 0:02:34.8]} 13... Nbd7 {[%clk 0:02:17.3]} 14. Be2
{[%clk 0:02:33.9]} 14... Rc8 {[%clk 0:02:14.7]} 15. Ra3 {[%clk 0:02:33.7]} 15...
Re8 {[%clk 0:02:12.6]} 16. Bf1 {[%clk 0:02:33.2]} 16... Qc7 {[%clk 0:01:58.2]}
17. Bg5 {[%clk 0:02:08]} 17... Ne5 {[%clk 0:01:45.4]} 18. Qd2 {[%clk 0:01:46.3]}
18... Nc4 {[%clk 0:01:35.4]} 19. Bxc4 {[%clk 0:01:45.5]} 19... Qxc4 {[%clk
0:01:35.5]} 20. Rb3 {[%clk 0:01:42.6]} 20... Qc7 {[%clk 0:01:26.8]} 21. Re2
{[%clk 0:01:40.1]} 21... Rb8 {[%clk 0:01:05.2]} 22. Na4 {[%clk 0:01:36.4]} 22...
Qd8 {[%clk 0:00:48.3]} 23. Rbe3 {[%clk 0:01:21.2]} 23... Rc8 {[%clk 0:00:44.8]}
24. b3 {[%clk 0:01:21.1]} 24... h6 {[%clk 0:00:25.5]} 25. Bf4 {[%clk 0:01:17.7]}
25... Nd7 {[%clk 0:00:22.9]} 26. Bxd6 {[%clk 0:01:13.2]} 26... Bf6 {[%clk
0:00:18.8]} 27. Bf4 {[%clk 0:01:12.3]} 27... h5 {[%clk 0:00:17.1]} 28. c4 {[%clk
0:01:11.6]} 28... Nc5 {[%clk 0:00:10.6]} 29. Nb6 {[%clk 0:01:10.4]} 29... Rc7
{[%clk 0:00:09.6]} 1-0

[Event "*** SCC Grand Prix: Titled Tuesday Blitz"]
[Site "Chess.com"]
[Date "2020.08.04"]
[Round "1"]
[White "MPGM"]
[Black "CzechmVIII"]
[Result "1-0"]
[WhiteElo "2543"]
[BlackElo "2160"]
[TimeControl "180+1"]
[EndTime "13:51:04 PDT"]
[Termination "MPGM won on time"]

1. d4 {[%clk 0:02:58.6]} 1... Nf6 {[%clk 0:02:59.6]} 2. c4 {[%clk 0:02:55]} 2...
c5 {[%clk 0:02:59.6]} 3. Nf3 {[%clk 0:02:53.3]} 3... cxd4 {[%clk 0:02:59.1]} 4.
Nxd4 {[%clk 0:02:54.2]} 4... e5 {[%clk 0:02:59.3]} 5. Nb5 {[%clk 0:02:53.5]}
5... d5 {[%clk 0:02:59.3]} 6. cxd5 {[%clk 0:02:53.5]} 6... Bc5 {[%clk
0:02:58.8]} 7. e3 {[%clk 0:02:50.9]} 7... O-O {[%clk 0:02:57.5]} 8. N5c3 {[%clk
0:02:50]} 8... e4 {[%clk 0:02:57.2]} 9. Be2 {[%clk 0:02:47.4]} 9... Qe7 {[%clk
0:02:55.4]} 10. b3 {[%clk 0:02:46.6]} 10... Rd8 {[%clk 0:02:50.3]} 11. O-O
{[%clk 0:02:42.9]} 11... Nc6 {[%clk 0:02:23.9]} 12. Bb2 {[%clk 0:02:39]} 12...
Ne5 {[%clk 0:02:08.2]} 13. Nd2 {[%clk 0:02:30.3]} 13... Bf5 {[%clk 0:02:03.7]}
14. Nc4 {[%clk 0:02:04.2]} 14... Nxc4 {[%clk 0:01:32.7]} 15. bxc4 {[%clk
0:02:02.4]} 15... a6 {[%clk 0:01:25.2]} 16. a4 {[%clk 0:01:58.1]} 16... Rac8
{[%clk 0:01:21.8]} 17. a5 {[%clk 0:01:51.6]} 17... Bb4 {[%clk 0:01:08.3]} 18.
Qb3 {[%clk 0:01:48.3]} 18... Nd7 {[%clk 0:00:57.3]} 19. Rfd1 {[%clk 0:01:32.5]}
19... Bd6 {[%clk 0:00:56.3]} 20. Na4 {[%clk 0:01:26.4]} 20... Nc5 {[%clk
0:00:39]} 21. Nxc5 {[%clk 0:01:26]} 21... Bxc5 {[%clk 0:00:39.5]} 22. Qc3 {[%clk
0:01:22.8]} 22... f6 {[%clk 0:00:33.9]} 23. Qb3 {[%clk 0:01:22]} 23... Bd6
{[%clk 0:00:31.2]} 24. Rac1 {[%clk 0:01:19.2]} 24... Qc7 {[%clk 0:00:23]} 25. c5
{[%clk 0:01:08.4]} 25... Bxh2+ {[%clk 0:00:20.8]} 26. Kh1 {[%clk 0:01:06.8]}
26... Be5 {[%clk 0:00:20.9]} 27. d6+ {[%clk 0:01:04]} 27... Qf7 {[%clk
0:00:21.1]} 28. Bc4 {[%clk 0:01:04]} 1-0

[Event "*** SCC Grand Prix: Titled Tuesday Blitz"]
[Site "Chess.com"]
[Date "2020.08.04"]
[Round "1"]
[White "GM_LOADING"]
[Black "Chessbard1972"]
[Result "0-1"]
[WhiteElo "2610"]
[BlackElo "2311"]
[TimeControl "180+1"]
[EndTime "13:51:10 PDT"]
[Termination "Chessbard1972 won by resignation"]

1. d4 {[%clk 0:03:00.2]} 1... Nf6 {[%clk 0:02:51.7]} 2. Nf3 {[%clk 0:03:00.3]}
2... g6 {[%clk 0:02:49.4]} 3. Bg5 {[%clk 0:03:00.3]} 3... Bg7 {[%clk 0:02:46]}
4. Nbd2 {[%clk 0:03:00]} 4... d5 {[%clk 0:02:45.9]} 5. e3 {[%clk 0:03:00]} 5...
O-O {[%clk 0:02:44.8]} 6. Bd3 {[%clk 0:02:58.9]} 6... c5 {[%clk 0:02:44.3]} 7.
c3 {[%clk 0:02:58.7]} 7... b6 {[%clk 0:02:42.6]} 8. O-O {[%clk 0:02:58.1]} 8...
Bb7 {[%clk 0:02:41.9]} 9. Ne5 {[%clk 0:02:57.3]} 9... Ne4 {[%clk 0:02:38.6]} 10.
Nxe4 {[%clk 0:02:42.2]} 10... dxe4 {[%clk 0:02:38]} 11. Bc4 {[%clk 0:02:42.3]}
11... Nc6 {[%clk 0:02:13.4]} 12. Nxc6 {[%clk 0:02:39.1]} 12... Bxc6 {[%clk
0:02:12.2]} 13. dxc5 {[%clk 0:02:38.1]} 13... Qc7 {[%clk 0:01:59.1]} 14. cxb6
{[%clk 0:02:35.3]} 14... axb6 {[%clk 0:01:57.4]} 15. Qe2 {[%clk 0:02:13.6]}
15... h6 {[%clk 0:01:55.9]} 16. Bf4 {[%clk 0:02:11.5]} 16... e5 {[%clk
0:01:55.1]} 17. Bg3 {[%clk 0:02:11.6]} 17... Kh7 {[%clk 0:01:54.5]} 18. Rfd1
{[%clk 0:01:40.7]} 18... f5 {[%clk 0:01:47.2]} 19. h4 {[%clk 0:01:40.2]} 19...
f4 {[%clk 0:01:42.3]} 20. exf4 {[%clk 0:01:41.1]} 20... exf4 {[%clk 0:01:42]}
21. Bh2 {[%clk 0:01:41.6]} 21... Be5 {[%clk 0:01:27.1]} 22. Qg4 {[%clk
0:00:52.8]} 22... h5 {[%clk 0:01:21.1]} 23. Qh3 {[%clk 0:00:49.1]} 23... Rad8
{[%clk 0:01:15.4]} 24. Qe6 {[%clk 0:00:31.6]} 24... Rde8 {[%clk 0:01:04.3]} 25.
Qh3 {[%clk 0:00:31.3]} 25... Re7 {[%clk 0:01:01.5]} 26. Bd5 {[%clk 0:00:26.3]}
26... Bd7 {[%clk 0:00:59.7]} 27. g4 {[%clk 0:00:26.4]} 27... fxg3 {[%clk
0:00:50.6]} 0-1

[Event "*** SCC Grand Prix: Titled Tuesday Blitz"]
[Site "Chess.com"]
[Date "2020.08.04"]
[Round "1"]
[White "RaunakSadhwani2005"]
[Black "albano87"]
[Result "1-0"]
[WhiteElo "2973"]
[BlackElo "2464"]
[TimeControl "180+1"]
[EndTime "13:51:15 PDT"]
[Termination "RaunakSadhwani2005 won by resignation"]

1. d4 {[%clk 0:02:59.9]} 1... d5 {[%clk 0:02:26.2]} 2. Bf4 {[%clk 0:02:59.9]}
2... Nc6 {[%clk 0:02:26.8]} 3. e3 {[%clk 0:02:59.6]} 3... b6 {[%clk 0:02:27.5]}
4. Nf3 {[%clk 0:02:57.2]} 4... Bb7 {[%clk 0:01:18.3]} 5. Nbd2 {[%clk 0:02:56.8]}
5... Nf6 {[%clk 0:01:17.1]} 6. Bd3 {[%clk 0:02:56.6]} 6... e6 {[%clk 0:01:12.7]}
7. O-O {[%clk 0:02:54.8]} 7... Bd6 {[%clk 0:01:11.4]} 8. Ne5 {[%clk 0:02:54.1]}
8... O-O {[%clk 0:01:10.4]} 9. c3 {[%clk 0:02:52.5]} 9... Ne7 {[%clk 0:01:10.2]}
10. Bg3 {[%clk 0:02:50.4]} 10... c5 {[%clk 0:01:09.9]} 11. a4 {[%clk 0:02:46.1]}
11... a6 {[%clk 0:01:08.5]} 12. Qe2 {[%clk 0:02:45.9]} 12... c4 {[%clk
0:01:07.2]} 13. Bc2 {[%clk 0:02:44.4]} 13... b5 {[%clk 0:01:08.1]} 14. f3 {[%clk
0:02:35.4]} 14... Ng6 {[%clk 0:01:02.9]} 15. Kh1 {[%clk 0:02:23.9]} 15... Qc7
{[%clk 0:00:56.6]} 16. f4 {[%clk 0:02:21.6]} 16... Ne4 {[%clk 0:00:53.4]} 17.
Bxe4 {[%clk 0:02:16.7]} 17... dxe4 {[%clk 0:00:54.3]} 18. Ng4 {[%clk 0:02:09.8]}
18... f5 {[%clk 0:00:50.8]} 19. Ne5 {[%clk 0:02:08.8]} 19... Bxe5 {[%clk
0:00:42.8]} 20. fxe5 {[%clk 0:02:09.6]} 20... Qc6 {[%clk 0:00:35.4]} 21. Nb1
{[%clk 0:02:07.8]} 21... Rf7 {[%clk 0:00:26.1]} 22. Na3 {[%clk 0:02:08.1]} 22...
Raf8 {[%clk 0:00:22.5]} 23. Nc2 {[%clk 0:02:08.5]} 23... f4 {[%clk 0:00:21.4]}
24. exf4 {[%clk 0:02:09.4]} 24... Nxf4 {[%clk 0:00:18.6]} 25. Bxf4 {[%clk
0:02:09.9]} 25... Rxf4 {[%clk 0:00:19.4]} 26. axb5 {[%clk 0:02:08.2]} 26... axb5
{[%clk 0:00:18.8]} 27. Ne3 {[%clk 0:02:07.3]} 27... Qc7 {[%clk 0:00:09.6]} 28.
Rxf4 {[%clk 0:02:05.9]} 28... Rxf4 {[%clk 0:00:10.5]} 29. Kg1 {[%clk 0:02:03.2]}
29... Qf7 {[%clk 0:00:10.5]} 30. Ra7 {[%clk 0:02:00]} 30... h6 {[%clk
0:00:09.9]} 31. h3 {[%clk 0:01:56.2]} 31... Qc7 {[%clk 0:00:08.7]} 32. Qe1
{[%clk 0:01:53.2]} 32... Qb6 {[%clk 0:00:07.6]} 33. Ra1 {[%clk 0:01:53]} 33...
Qd8 {[%clk 0:00:06.2]} 34. Qg3 {[%clk 0:01:51.3]} 34... Qg5 {[%clk 0:00:05.3]}
35. Qxg5 {[%clk 0:01:50.8]} 35... hxg5 {[%clk 0:00:06.2]} 36. Ra5 {[%clk
0:01:50.3]} 36... Bc6 {[%clk 0:00:04.9]} 37. Ra6 {[%clk 0:01:49.2]} 37... Bd7
{[%clk 0:00:05.1]} 38. Rd6 {[%clk 0:01:45.4]} 38... Rf7 {[%clk 0:00:03.8]} 39.
d5 {[%clk 0:01:45.6]} 39... exd5 {[%clk 0:00:03.3]} 40. e6 {[%clk 0:01:46.1]}
40... Rf6 {[%clk 0:00:03.3]} 41. Rxd7 {[%clk 0:01:45.8]} 41... Rxe6 {[%clk
0:00:03.7]} 42. Rxd5 {[%clk 0:01:46.4]} 42... Rb6 {[%clk 0:00:02.7]} 43. Rxg5
{[%clk 0:01:45.6]} 43... b4 {[%clk 0:00:03.2]} 44. Nxc4 {[%clk 0:01:44.5]} 44...
bxc3 {[%clk 0:00:04.1]} 45. Nxb6 {[%clk 0:01:43.5]} 45... cxb2 {[%clk
0:00:04.3]} 46. Rb5 {[%clk 0:01:43.6]} 1-0

[Event "*** SCC Grand Prix: Titled Tuesday Blitz"]
[Site "Chess.com"]
[Date "2020.08.04"]
[Round "1"]
[White "Cambek64"]
[Black "Bulldog167"]
[Result "0-1"]
[WhiteElo "2363"]
[BlackElo "2727"]
[TimeControl "180+1"]
[EndTime "13:51:15 PDT"]
[Termination "Bulldog167 won by checkmate"]

1. d4 {[%clk 0:02:59.5]} 1... Nf6 {[%clk 0:03:00.2]} 2. Nf3 {[%clk 0:02:57]}
2... c5 {[%clk 0:03:00.7]} 3. dxc5 {[%clk 0:02:51.8]} 3... e6 {[%clk 0:03:00.8]}
4. e3 {[%clk 0:02:46.9]} 4... Bxc5 {[%clk 0:03:00.4]} 5. c4 {[%clk 0:02:45.1]}
5... O-O {[%clk 0:03:00.4]} 6. Nc3 {[%clk 0:02:45.1]} 6... b6 {[%clk 0:02:59.7]}
7. Be2 {[%clk 0:02:43.7]} 7... Bb7 {[%clk 0:03:00]} 8. O-O {[%clk 0:02:43.9]}
8... Be7 {[%clk 0:03:00.2]} 9. b3 {[%clk 0:02:43.4]} 9... d6 {[%clk 0:03:00.3]}
10. Bb2 {[%clk 0:02:43.4]} 10... a6 {[%clk 0:03:00.4]} 11. Rc1 {[%clk
0:02:39.7]} 11... Nbd7 {[%clk 0:03:00.6]} 12. Nd4 {[%clk 0:02:38.2]} 12... Qc7
{[%clk 0:02:59.4]} 13. Bf3 {[%clk 0:02:37.5]} 13... Rfc8 {[%clk 0:02:58.9]} 14.
Bxb7 {[%clk 0:02:36.9]} 14... Qxb7 {[%clk 0:02:59.8]} 15. Qf3 {[%clk 0:02:36.7]}
15... Qc7 {[%clk 0:02:54]} 16. Rfd1 {[%clk 0:02:35.2]} 16... Ne5 {[%clk
0:02:54.2]} 17. Qe2 {[%clk 0:02:34.8]} 17... Qb7 {[%clk 0:02:54.2]} 18. h3
{[%clk 0:02:34.5]} 18... Nc6 {[%clk 0:02:53.3]} 19. Qf3 {[%clk 0:02:32.9]} 19...
Rab8 {[%clk 0:02:52]} 20. Nxc6 {[%clk 0:02:32.2]} 20... Qxc6 {[%clk 0:02:50.9]}
21. Qxc6 {[%clk 0:02:31.1]} 21... Rxc6 {[%clk 0:02:51.8]} 22. Ne2 {[%clk
0:02:30.8]} 22... Rbc8 {[%clk 0:02:49.1]} 23. f3 {[%clk 0:02:30.8]} 23... Kf8
{[%clk 0:02:46]} 24. Kf2 {[%clk 0:02:29.5]} 24... Nd7 {[%clk 0:02:46]} 25. Bd4
{[%clk 0:02:26.7]} 25... g6 {[%clk 0:02:28.9]} 26. e4 {[%clk 0:02:22.4]} 26...
f5 {[%clk 0:02:23.7]} 27. g4 {[%clk 0:02:13.5]} 27... fxe4 {[%clk 0:02:23.2]}
28. fxe4 {[%clk 0:02:13.1]} 28... Kf7 {[%clk 0:02:08.4]} 29. Rf1 {[%clk
0:02:02.9]} 29... Bf6 {[%clk 0:02:05.1]} 30. Ke3 {[%clk 0:02:01.3]} 30... Ke7
{[%clk 0:02:04]} 31. Bxf6+ {[%clk 0:02:00.2]} 31... Nxf6 {[%clk 0:02:04.9]} 32.
Nd4 {[%clk 0:01:59.7]} 32... R6c7 {[%clk 0:02:04.8]} 33. Ne2 {[%clk 0:01:58.5]}
33... Nd7 {[%clk 0:02:02.9]} 34. Rcd1 {[%clk 0:01:47.2]} 34... Ne5 {[%clk
0:02:01.4]} 35. Rd2 {[%clk 0:01:42]} 35... b5 {[%clk 0:01:59]} 36. cxb5 {[%clk
0:01:38.9]} 36... axb5 {[%clk 0:01:59.9]} 37. Rf4 {[%clk 0:01:09.6]} 37... g5
{[%clk 0:01:38.7]} 38. Rf1 {[%clk 0:01:08.3]} 38... Ra8 {[%clk 0:01:29.8]} 39.
Rf2 {[%clk 0:01:05.8]} 39... b4 {[%clk 0:01:24.4]} 40. Kd4 {[%clk 0:00:59.8]}
40... Rac8 {[%clk 0:01:21.9]} 41. Ke3 {[%clk 0:00:56.6]} 41... h6 {[%clk
0:01:21.9]} 42. Kd4 {[%clk 0:00:56.6]} 42... Rc3 {[%clk 0:01:12.6]} 43. Nxc3
{[%clk 0:00:52.4]} 43... Rxc3 {[%clk 0:01:13.5]} 44. a3 {[%clk 0:00:39.7]} 44...
Nc6# {[%clk 0:01:13.4]} 0-1